Cogmind - Beta 16 @@@ ROGUE MODE // 2025.11.27 @ 20:52:07 Player: ktur Result: Destroyed by Immortal with Experimental Jetlance Performance ------------- Evolutions (7) 3500 Regions Visited (24) 4800 Robots Destroyed (101) 505 Value Destroyed (3879) 3879 Prototype IDs (87) 1740 Alien Tech Used (6) 1200 Bonus (21960) 21960 TOTAL SCORE: 37584 Bonus ------- Follower Combat Kills 2793 Network Hubs Disabled 200 Delivered SUBCON Basin 2000 Registered with UFD 300 Met Optimus in HQ 500 Met Zhirov 300 Met Warlord at Base 500 MAIN.C Attacked Warlord 500 Warlord Defense Kills 108 Built Enhanced Grunts 300 Destroyed Superfortress 15000 Met Optimus at Protoforge 1000 Friendly Fire -1541 Cogmind --------- Core Integrity 0/1300 Matter 290/300 Energy 26/100 System Corruption 7% Temperature Cool (0) Movement Core (250) Ox4 Location -3/Protoforge Parts ------- > --- POWER (3) -------- (None) > --- PROPULSION (7) --- (None) > --- UTILITY (9) ------ Advanced Signal Interpreter Advanced Melee Analysis Suite Concept RG22 Armor Graphene Brace > --- WEAPON (3) ------- Concept Deflector Sword Experimental Jetlance > --- INVENTORY (5) ---- Micro Antimatter Reactor Deep Structural Scanner Experimental Focal Shield Long-range Missile Launcher Experimental Jetlance Peak State ------------ > --- POWER ------------ Micro Fission Core Micro Fission Core Improved Fusion Compressor > --- PROPULSION ------- Cooled Nuclear Pulse Thruster Impulse Thruster Array Flightbrick > --- UTILITY ---------- Large Storage Unit Deep Structural Scanner Enhanced Optical Array Advanced Signal Interpreter Melee Analysis Suite Experimental Utility Shielding Phase Redirector Hacking Suite Makeshift Hacking Suite Experimental Hacking Suite Experimental Hacking Suite Ghost Barrier > --- WEAPON ----------- Advanced Datajack LU-1G1's Laser Shovel > --- INVENTORY -------- Advanced Energy Well Advanced Matter Compressor Experimental Transmission Jammer Jamming Amplifier Advanced ECM Suite Advanced Reaction Control System Experimental Utility Shielding Graphene Brace Experimental Focal Shield Advanced Thermal Shield Transdimensional Reconstructor Vortex Rail Vortex Rail Long-range Missile Launcher Chainsword [Rating: 172] Favorites ----------- Power Subdweller Power Source Engine Subdweller Power Source Power Core Micro Fission Core Reactor Micro Antimatter Reactor Propulsion Spiked Treads Treads Spiked Treads Wheel Compact Wheel Flight Unit Flightbrick Utility Large Storage Unit Device Advanced Sensor Array Storage Large Storage Unit Processor Melee Analysis Suite Hackware Makeshift Hacking Suite Protection Improved Utility Shielding Artifact Phase Redirector Weapon Subdweller Beam Cannon Energy Gun Subdweller Laser Energy Cannon Subdweller Beam Cannon Ballistic Gun Assault Rifle Launcher Long-range Missile Launcher Special Weapon LU-1G1's Laser Shovel Impact Weapon Maul Slashing Weapon Chainsword Piercing Weapon Experimental Jetlance Special Melee Weapon Advanced Datajack Build | -11 -10 -10 -9 -9 -6 -6 -6 -6 -6 -6 -6 -5 -5 -5 -5 -4 -4 -4 -4 -4 -3 -3 -3 -3 ------- Run | Yrd Mat Sub Rec Scr Fac Was Fac Ext Cet Arc Hub Fac Upp Upp War Pro Fac Upp Upp Zhi Pro Res Qua Frg Slots Evolved 14 | . . . . . 8 . . . . . . 2 . . . . 2 . . . . 2 . . Power 1 | . . . . . 1 . . . . . . . . . . . . . . . . . . . Propulsion 5 | . . . . . 3 . . . . . . 1 . . . . 1 . . . . . . . Utility 7 | . . . . . 4 . . . . . . 1 . . . . 1 . . . . 1 . . Weapon 1 | . . . . . . . . . . . . . . . . . . . . . . 1 . . Parts Attached 120 | 8 . 19 . 6 22 . 4 1 . 4 . 6 . 1 7 . 11 1 1 3 . 8 3 15 Power 15 | 1 . 3 . . 4 . . . . . . 1 . 1 . . 2 . 1 . . 1 . 1 Engine 5 | 1 . 3 . . . . . . . . . 1 . . . . . . . . . . . . Core 9 | . . . . . 4 . . . . . . . . 1 . . 2 . 1 . . 1 . . Reactor 1 | . . . . . . . . . . . . . . . . . . . . . . . . 1 Propulsion 17 | 2 . 2 . 1 3 . . . . . . 3 . . . . 1 . . . . 1 . 4 Treads 4 | 2 . 2 . . . . . . . . . . . . . . . . . . . . . . Leg . | . . . . . . . . . . . . . . . . . . . . . . . . . Wheel 2 | . . . . 1 1 . . . . . . . . . . . . . . . . . . . Hover . | . . . . . . . . . . . . . . . . . . . . . . . . . Flight 11 | . . . . . 2 . . . . . . 3 . . . . 1 . . . . 1 . 4 Utility 62 | 3 . 5 . 2 12 . 3 1 . 3 . 2 . . 4 . 8 1 . 3 . 6 3 6 Device 14 | 2 . . . . 2 . 1 . . 2 . . . . 2 . 2 . . . . 1 1 1 Storage 7 | 1 . 1 . 1 . . 1 . . . . . . . . . . . . 2 . . . 1 Processor 13 | . . 1 . . 5 . . . . 1 . 1 . . 1 . 1 1 . . . . 1 1 Hackware 16 | . . . . . 5 . . . . . . 1 . . 1 . 5 . . . . 4 . . Protection 11 | . . 3 . 1 . . 1 1 . . . . . . . . . . . 1 . 1 . 3 Artifact 1 | . . . . . . . . . . . . . . . . . . . . . . . 1 . Weapon 26 | 2 . 9 . 3 3 . 1 . . 1 . . . . 3 . . . . . . . . 4 Energy Gun 6 | . . 2 . . . . . . . . . . . . 3 . . . . . . . . 1 Energy Cannon 3 | . . 3 . . . . . . . . . . . . . . . . . . . . . . Ballistic Gun 5 | 2 . 3 . . . . . . . . . . . . . . . . . . . . . . Ballistic Cannon . | . . . . . . . . . . . . . . . . . . . . . . . . . Launcher 2 | . . . . 1 1 . . . . . . . . . . . . . . . . . . . Special Weapon 2 | . . 1 . . 1 . . . . . . . . . . . . . . . . . . . Impact Weapon 1 | . . . . 1 . . . . . . . . . . . . . . . . . . . . Slashing Weapon 3 | . . . . . . . 1 . . . . . . . . . . . . . . . . 2 Piercing Weapon 1 | . . . . . . . . . . . . . . . . . . . . . . . . 1 Special Melee Weapon 3 | . . . . 1 1 . . . . 1 . . . . . . . . . . . . . . Unidentified Prototypes 23 | . . . . . 1 . . . . . . . . . 6 . . 2 . 4 . . 1 9 Corrupted Parts 1 | . . . . . 1 . . . . . . . . . . . . . . . . . . . System Corruption 3 | . . . . . 3 . . . . . . . . . . . . . . . . . . . Parts Lost 25 | . . 5 . . . . . . . . 1 . . . . . . . . . . . . 19 Power 4 | . . 1 . . . . . . . . . . . . . . . . . . . . . 3 Propulsion 8 | . . . . . . . . . . . 1 . . . . . . . . . . . . 7 Utility 8 | . . 2 . . . . . . . . . . . . . . . . . . . . . 6 Weapon 5 | . . 2 . . . . . . . . . . . . . . . . . . . . . 3 Highest Loss Streak 12 | . . 2 . . . . . . . . 1 . . . . . . . . . . . . 12 To Critical Strikes . | . . . . . . . . . . . . . . . . . . . . . . . . . Average Backups 11 | 4 6 5 7 15 13 14 14 13 14 13 14 13 13 13 12 13 12 12 13 14 15 14 15 12 Power . | 1 1 . . . 1 1 1 1 1 1 1 1 1 . . . . 1 1 1 1 . . . Propulsion . | 1 2 1 2 2 . . . . . . . . 1 1 1 1 . . . . . . . . Utility 7 | . 1 2 5 11 7 10 10 9 10 10 10 9 8 9 9 8 7 7 8 8 9 9 9 6 Weapon 1 | 1 2 1 . . 1 2 1 1 2 1 1 1 1 1 1 3 3 3 3 3 3 3 3 4 Tool/Special . | . . . . . . . . . . . . . . . . . . . . . . . . . Unused Backups 42 | . . 4 . 11 4 1 1 2 . 1 . 2 2 . 1 . . . . 2 . 1 1 9 Power . | . . . . . . . . . . . . . . . . . . . . . . . . . Propulsion 1 | . . 1 . . . . . . . . . . . . . . . . . . . . . . Utility 29 | . . 1 . 9 3 1 1 1 . . . 2 2 . 1 . . . . 2 . 1 1 4 Weapon 7 | . . 2 . . 1 . . . . 1 . . . . . . . . . . . . . 3 Tool/Special 5 | . . . . 2 . . . 1 . . . . . . . . . . . . . . . 2 Average Slot Usage (%) 82 | . 100 88 85 86 65 80 83 83 83 80 74 69 77 80 79 80 80 80 80 81 82 78 80 70 Engine 9 | . 14 13 14 14 . 6 11 11 11 11 11 9 10 7 5 5 . . . . . . . . Core 2 | . . . . . 4 1 . . . . . . . 2 5 5 8 8 11 13 13 12 12 7 Treads 14 | . 28 28 28 24 . . . . . . . . . . . . . . . . . . . . Flight 5 | . . . . . 9 11 11 11 11 11 7 6 10 10 10 10 13 13 13 13 13 12 12 16 Device 3 | . 14 2 . . 3 5 4 . . 3 5 4 5 5 6 10 8 8 8 7 8 5 8 10 Storage 7 | . 14 7 14 13 5 5 5 5 5 5 5 5 5 5 5 5 4 4 4 4 4 4 4 3 Processor 8 | . . 3 . . 15 22 22 22 22 18 16 15 15 15 13 10 12 13 13 13 13 12 12 14 Hackware 7 | . . . . . 15 16 16 16 16 16 16 17 20 20 20 20 18 17 17 17 17 20 20 7 Protection 3 | . . 3 . 2 . . . 4 5 4 5 5 5 5 5 5 4 3 4 4 4 4 4 4 Energy Gun 1 | . . 3 . . . . . . . . . . . . . . . . . . . . . . Energy Cannon 10 | . . 18 28 21 . . . . . . . . . . . . . . . . . . . . Ballistic Gun 1 | . 28 3 . . . . . . . . . . . . . . . . . . . . . . Special Weapon 1 | . . 2 . . 1 5 . . . . . . . . . . . 2 3 . 3 1 4 1 Impact Weapon 1 | . . . . 3 3 . 3 . . . . . . . . . . . . . . . . . Slashing Weapon 1 | . . . . . . . . 5 5 5 5 4 5 4 3 5 3 1 . 3 1 2 1 1 Special Melee Weapon 1 | . . . . 2 . 5 5 5 5 3 . . 2 5 5 5 3 4 4 4 4 4 2 . Peak Build Rating 172 | 9 7 34 34 24 94 97 97 96 94 100 90 105 112 115 122 123 141 145 146 149 147 166 172 164 Average Rating 62 | 5 7 17 23 21 76 95 94 93 94 94 88 91 108 113 115 121 134 140 144 144 146 155 163 135 On Entrance 94 | . 7 7 34 19 23 94 97 96 94 94 90 87 104 112 114 121 121 139 139 146 145 147 163 167 Avg Prop Armor Cover (%) 12 | . . . . 14 11 . . . . . . 1 . . . . 34 . . . . . . . Naked Turns . | . . . . . . . . . . . . . . . . . . . . . . . . . Heaviest Build 61 | 13 13 61 61 61 36 32 32 30 30 30 30 33 31 34 39 36 43 43 45 45 45 45 48 51 Greatest Support 49 | 40 40 40 40 40 30 30 30 30 30 30 30 37 37 37 37 37 45 45 45 45 48 46 49 46 Greatest Overweight (x) 4 | . . 1 1 3 2 1 1 . . . 1 1 . . 1 . 1 . . . . . 1 4 Average Overweight (x) . | . . . 1 1 . . . . . . . . . . . . . . . . . . . . Largest Inventory Capacity 25 | 8 8 25 25 25 15 15 15 15 15 15 15 15 15 15 15 15 15 15 15 15 15 15 15 15 Average Capacity 17 | 7 8 14 25 23 15 15 15 15 15 15 15 15 15 15 15 15 15 15 15 15 15 15 15 14 Most Carried 25 | 7 6 25 25 25 15 15 15 15 15 15 15 15 15 15 15 15 15 15 15 15 15 15 15 15 Average Carried 14 | 4 6 11 18 19 14 14 14 14 15 14 15 14 14 14 14 15 14 14 14 14 15 14 14 12 Final Capacity 25 | 8 8 25 25 15 15 15 15 15 15 15 15 15 15 15 15 15 15 15 15 15 15 15 15 5 Final Carried 25 | 6 6 25 17 15 15 15 15 15 15 15 15 15 15 15 15 15 15 15 15 15 15 15 15 5 Class Distribution -------------------- 48% | Mutant 22% | Hacker-Mutant 10% | Hacker-Scout 7% | Wizard-Scout 5% | Subdweller-Mutant 4% | Commander-Mutant Dominant Class ---------------- Mutant | -10/Materials Mutant | -10/Subcaves Mutant | -9/Recycling Mutant | -9/Scraptown Hacker-Mutant | -6/Factory Hacker-Mutant | -6/Waste Hacker-Mutant | -6/Factory Commander-Mutant | -6/Extension Hacker-Mutant | -6/Cetus Hacker-Mutant | -6/Archives Hacker-Mutant | -6/Hub_04(d) Hacker-Mutant | -5/Factory Hacker-Mutant | -5/Upper Caves Hacker-Mutant | -5/Upper Caves Hacker-Mutant | -5/Warlord Hacker-Mutant | -4/Proximity Caves Hacker-Scout | -4/Factory Hacker-Scout | -4/Upper Caves Hacker-Scout | -4/Upper Caves Hacker-Scout | -4/Zhirov Hacker-Scout | -3/Proximity Caves Wizard-Scout | -3/Research Wizard-Scout | -3/Quarantine Hacker-Scout | -3/Protoforge Resources | -11 -10 -10 -9 -9 -6 -6 -6 -6 -6 -6 -6 -5 -5 -5 -5 -4 -4 -4 -4 -4 -3 -3 -3 -3 ----------- Run | Yrd Mat Sub Rec Scr Fac Was Fac Ext Cet Arc Hub Fac Upp Upp War Pro Fac Upp Upp Zhi Pro Res Qua Frg Matter Collected 5669 | 340 . 433 . 139 475 68 20 110 . 70 . 99 56 265 716 63 722 167 101 250 105 506 . 964 Remotely . | . . . . . . . . . . . . . . . . . . . . . . . . . Salvage Created 4660 | 138 . 884 224 194 234 . 73 235 22 394 . 45 . 126 25 154 353 50 . . . 214 . 1295 Parts 237 | 9 . 61 10 13 17 . 2 5 1 29 . 10 . 3 1 5 16 8 . . . 12 . 35 Haulers Intercepted 2 | . . . . . . . 1 . . . . . . . . . . . . . . 1 . . Recyclers Shooed 3 | 2 . . . . . . . . . . . . . . . . 1 . . . . . . . Parts Field Recycled . | . . . . . . . . . . . . . . . . . . . . . . . . . Retrieved Matter . | . . . . . . . . . . . . . . . . . . . . . . . . . Parts Self-Destructed 51 | . . 23 . . . . . . . . . . 5 3 . 7 . 13 . . . . . . Prevented 11 | . . . . . . . . . . . . . 1 . . . . 10 . . . . . . Parts Restored . | . . . . . . . . . . . . . . . . . . . . . . . . . Kills | -11 -10 -10 -9 -9 -6 -6 -6 -6 -6 -6 -6 -5 -5 -5 -5 -4 -4 -4 -4 -4 -3 -3 -3 -3 ------- Run | Yrd Mat Sub Rec Scr Fac Was Fac Ext Cet Arc Hub Fac Upp Upp War Pro Fac Upp Upp Zhi Pro Res Qua Frg Combat Hostiles Destroyed 66 | . . 22 3 4 8 . . 1 . . . 2 . 4 2 . 4 4 . . . 2 . 10 Melee 10 | . . . . . 1 . . 1 . . . . . 1 . . . . . . . 2 . 5 Guns 15 | . . 13 . . . . . . . . . . . . . . . . . . . . . 2 Cannons 12 | . . 9 3 . . . . . . . . . . . . . . . . . . . . . AOE 29 | . . . . 4 7 . . . . . . 2 . 3 2 . 4 4 . . . . . 3 Classes Destroyed 22 | 2 . 4 . 3 1 . 1 1 1 . . . . . . . 1 . . . . . . 8 Worker 1 | . . . . . . . . . . . . . . . . . 1 . . . . . . . Tunneler 4 | 3 . . . . . . . . . . . . . . . . 1 . . . . . . . Hauler 2 | . . . . . . . 1 . . . . . . . . . . . . . . 1 . . Recycler 6 | 1 . . 1 . 1 . . 1 . . . . . . . . 2 . . . . . . . Operator 11 | . . . . . . . . 1 . 9 . 1 . . . . . . . . . . . . Drone 1 | . . . . . . . . . . . . . . . . . . . . . . . . 1 Watcher 4 | . . . . . . . . . 1 . . . . . . . 2 . . . . 1 . . Swarmer 30 | . . 5 . . 7 . . . . . . 2 . 4 2 . 4 4 . . . 2 . . Grunt 5 | . . 4 . . . . . 1 . . . . . . . . . . . . . . . . Researcher 1 | . . . . . . . . . . . . . . . . . . . . . . . . 1 Sentry 5 | . . 1 3 . . . . . . . . . . . . . . . . . . . . 1 Specialist 1 | . . . . . . . . . . . . . . . . . . . . . . . . 1 Programmer 1 | . . . . . 1 . . . . . . . . . . . . . . . . . . . Enhanced Grunt 1 | . . . . . . . . . . 1 . . . . . . . . . . . . . . Hotshot 2 | . . . . . . . . . . . . . . . . . . . . . . . . 2 Decapitator 3 | . . . . . . . . . . . . . . . . . . . . . . . . 3 V-Series 1 | . . . . . . . . . . . . . . . . . . . . . . . . 1 Subdweller 12 | . . 12 . . . . . . . . . . . . . . . . . . . . . . Federalist 1 | . . . . 1 . . . . . . . . . . . . . . . . . . . . Explorer 1 | . . . . . . . . . . . . . . . . . . . . . . . . 1 Guru 1 | . . . . 1 . . . . . . . . . . . . . . . . . . . . Scrapper 2 | . . . . 2 . . . . . . . . . . . . . . . . . . . . Elite 3 | . . . . . . . . . . . . . . . . . . . . . . . . 3 Scrapoid 1 | . . . . . . . . . . . . . . . . . . . . . . . . 1 Best Kill Streak 8 | 1 . 4 3 4 4 . 1 1 1 8 . 2 . 4 2 . 4 4 . . . 1 . 3 Combat Bots Only 4 | . . 4 3 4 4 . . 1 . . . 2 . 4 2 . 4 4 . . . 1 . 3 Max Kills in Single Turn 4 | 1 . 2 1 4 3 . 1 1 1 1 . 2 . 2 2 . 2 4 . . . 1 . 2 Gunslinging 1 | . . 1 . . . . . . . . . . . . . . . . . . . . . . Exploded 4 | . . . . 4 3 . . . . . . 2 . 2 2 . 2 4 . . . . . 1 Melee 1 | . . . . . 1 . . 1 . . . . . 1 . . . . . . . 1 . 1 Uniques/NPCs Destroyed 1 | . . . . . . . . . . . . . . . . . . . . . . . . 1 Superfortress (-3/Protoforge) Combat | -11 -10 -10 -9 -9 -6 -6 -6 -6 -6 -6 -6 -5 -5 -5 -5 -4 -4 -4 -4 -4 -3 -3 -3 -3 -------- Run | Yrd Mat Sub Rec Scr Fac Was Fac Ext Cet Arc Hub Fac Upp Upp War Pro Fac Upp Upp Zhi Pro Res Qua Frg Hostile Shots Fired 495 | . . 105 2 14 75 . . 35 . 2 5 7 6 14 . 12 49 4 . . 9 4 7 145 Missed 199 | . . 34 1 4 45 . . 13 . 2 4 2 5 4 . 5 23 4 . . 6 3 4 40 Hits 296 | . . 71 1 10 30 . . 22 . . 1 5 1 10 . 7 26 . . . 3 1 3 105 Melee 54 | . . . . . . . . . . . . . . . . . . . . . . . . 54 Projectile 242 | . . 71 1 10 30 . . 22 . . 1 5 1 10 . 7 26 . . . 3 1 3 51 AOE 6 | . . 4 . . . . . . . . . . . . . . . . . . . . . 2 Critical Strikes 33 | . . 1 . 2 1 . . 1 . . . 1 . . . . 1 . . . 1 . . 25 Actively Blocked 25 | . . . . . . . . . . . . . . . . . . . . . . . . 25 Part Disruptions 1 | . . . . . . . . . . . . . . . . . 1 . . . . . . . Damage Taken 8257 | . . 1335 14 229 427 . 51 226 26 . 18 114 18 171 . 133 671 . . . 69 20 120 4615 Core 1614 | . . 67 . 56 20 . . 41 26 . . 62 18 36 . . 30 . . . 25 . . 1233 Absorbed by Shields 32 | . . . . . . . . 32 . . . . . . . . . . . . . . . . Redirected to Shielding 342 | . . . . . . . . 6 . . . . . 35 . . 34 . . . . . . 267 Regen/Repaired (Parts) 1156 | . . . . . 33 . 15 4 . . . 26 . . . . . . . . . . . 1078 Core Remaining (%) 84 | 100 . . . 50 . . . . . . 89 . . . . 88 . . . . 95 . . . Volleys Fired 190 | 10 . 123 4 1 5 . . . . . . 1 . 2 3 . 2 3 . . . . . 36 Largest 2 | 2 . 2 2 1 1 . . . . . . 1 . 1 1 . 1 1 . . . . . 2 Hottest 160 | 40 . 160 160 30 43 . . . . . . 43 . 43 43 . 43 43 . . . . . 90 Shots Fired 284 | 20 . 194 8 1 5 . . . . . . 1 . 2 3 . 2 3 . . . . . 45 Gun 138 | 20 . 75 . . . . . . . . . . . . 2 . . . . . . . . 41 Cannon 98 | . . 90 8 . . . . . . . . . . . . . . . . . . . . . Launcher 19 | . . . . 1 5 . . . . . . 1 . 2 1 . 2 3 . . . . . 4 Special 29 | . . 29 . . . . . . . . . . . . . . . . . . . . . . Kinetic 66 | 20 . 46 . . . . . . . . . . . . . . . . . . . . . . Thermal 156 | . . 148 8 . . . . . . . . . . . . . . . . . . . . . Explosive 19 | . . . . 1 5 . . . . . . 1 . 2 1 . 2 3 . . . . . 4 Electromagnetic . | . . . . . . . . . . . . . . . . . . . . . . . . . Entropic 43 | . . . . . . . . . . . . . . . 2 . . . . . . . . 41 Robot Hit Streak 11 | 4 . 9 4 . 1 . . . . . . . . . . . . . . . . . . 11 Robot Miss Streak 3 | 2 . 3 1 1 2 . . . . . . 1 . . . . . . . . . . . 2 Penetration Max 1 | . . . . . . . . . . . . . . . . . . . . . . . . 1 Secondary Targets 4 | . . 4 . . . . . . . . . . . . . . . . . . . . . . Max Gunslinging Chain 1 | . . 1 . . . . . . . . . . . . . . . . . . . . . . Shots Hit Robots 268 | 13 . 87 4 . 11 . 4 33 2 21 . 1 . 3 . 2 11 . . . . 11 . 65 Core Hits 152 | 4 . 33 5 6 5 . 1 3 1 11 . 3 . 6 3 . 10 5 . . . 5 . 51 Critical Kills 1 | . . 1 . . . . . . . . . . . . . . . . . . . . . . Critical Parts Destroyed 8 | . . . . . 4 . . . . . . . . . . . . . . . . . . 4 Critical Strikes 25 | . . 1 . . 4 . . 1 1 1 . . . 1 . . . . . . . 2 . 14 Meltdown 1 | . . 1 . . . . . . . . . . . . . . . . . . . . . . Smash 4 | . . . . . 4 . . . . . . . . . . . . . . . . . . . Sever 10 | . . . . . . . . 1 1 1 . . . 1 . . . . . . . 2 . 4 Impale 6 | . . . . . . . . . . . . . . . . . . . . . . . . 6 Detonate 4 | . . . . . . . . . . . . . . . . . . . . . . . . 4 Melee Attacks 218 | . . . . 2 37 . 7 35 5 24 3 10 1 6 . 2 31 . . . . 12 . 43 Impact 45 | . . . . 2 37 . 6 . . . . . . . . . . . . . . . . . Slashing 117 | . . . . . . . . 9 5 24 3 10 1 6 . 2 31 . . . . 12 . 14 Piercing 29 | . . . . . . . . . . . . . . . . . . . . . . . . 29 Sneak Attacks 55 | . . . . . 2 . 2 28 . 15 . 1 . . . . 4 . . . . 1 . 2 Combat Hostiles 1 | . . . . . . . . 1 . . . . . . . . . . . . . . . . Follow-up Attacks 4 | . . . . . . . . . . . . . . . . . . . . . . . . 4 Damage Inflicted 14247 | 162 . 1871 134 194 1180 . 128 368 84 1552 . 293 . 556 206 122 902 490 . . . 502 . 5503 Guns 2458 | 162 . 884 . . . . . . . . . . . . . . . . . . . . . 1412 Cannons 1100 | . . 987 113 . . . . . . . . . . . . . . . . . . . . . Explosions 3870 | . . . . 194 632 . . . . . . 206 . 385 206 . 276 490 . . . . . 1481 Melee 6798 | . . . . . 548 . 128 368 84 1552 . 87 . 171 . 122 626 . . . . 502 . 2610 Ramming 21 | . . . 21 . . . . . . . . . . . . . . . . . . . . . Kinetic 624 | 162 . 462 . . . . . . . . . . . . . . . . . . . . . . Thermal 2719 | . . 1409 113 . . . . . . . . . . . . . . . . . . . . 1197 Explosive 2673 | . . . . 194 632 . . . . . . 206 . 385 206 . 276 490 . . . . . 284 Electromagnetic . | . . . . . . . . . . . . . . . . . . . . . . . . . Impact 676 | . . . . . 548 . 128 . . . . . . . . . . . . . . . . . Slashing 4323 | . . . . . . . . 368 84 1552 . 87 . 171 . 122 626 . . . . 502 . 811 Piercing 1799 | . . . . . . . . . . . . . . . . . . . . . . . . 1799 Entropic 1412 | . . . . . . . . . . . . . . . . . . . . . . . . 1412 Highest Corruption 7 | . . . . 1 1 . . . . 4 . . . 1 1 . 3 3 3 3 3 . . 7 Average Corruption 3 | . . . . 1 1 . . . . 2 . . . 1 1 . 2 3 3 3 3 . . 3 Corruption Purged 4 | . . . . . . . . . . 4 . . . . . . . . . . . . . . Corruption Blocked . | . . . . . . . . . . . . . . . . . . . . . . . . . Effects 22 | . . . . 1 2 . . . . . . . . . . . 2 1 1 2 3 . . 10 Message Errors 7 | . . . . . . . . . . . . . . . . . . . 1 2 2 . . 2 Matter Fused 4 | . . . . 1 1 . . . . . . . . . . . . . . . . . . 2 Heat Flow Errors 3 | . . . . . 1 . . . . . . . . . . . 2 . . . . . . . Energy Discharges 2 | . . . . . . . . . . . . . . . . . . 1 . . . . . 1 Parts Fused 1 | . . . . . . . . . . . . . . . . . . . . . . . . 1 Data Loss (minor) 4 | . . . . . . . . . . . . . . . . . . . . . 1 . . 3 Data Loss (major) 1 | . . . . . . . . . . . . . . . . . . . . . . . . 1 Overload Shots . | . . . . . . . . . . . . . . . . . . . . . . . . . Overflow Damage 927 | . . . . . 395 . 55 12 . 184 . 10 . . 24 58 127 11 . . . . . 51 Projectiles . | . . . . . . . . . . . . . . . . . . . . . . . . . Explosions 165 | . . . . . 107 . . . . . . 10 . . 24 . . 11 . . . . . 13 Melee 762 | . . . . . 288 . 55 12 . 184 . . . . . 58 127 . . . . . . 38 Knockbacks 4 | . . . . . 4 . . . . . . . . . . . . . . . . . . . Impact 4 | . . . . . 4 . . . . . . . . . . . . . . . . . . . Kinetic . | . . . . . . . . . . . . . . . . . . . . . . . . . Secondary . | . . . . . . . . . . . . . . . . . . . . . . . . . Self-Inflicted Damage 283 | . . . . 11 102 . . . . . . . . . . . 113 . . . . . . 57 Shots 6 | . . . . 1 2 . . . . . . . . . . . 1 . . . . . . 2 Rammed 1 | . . . 1 . . . . . . . . . . . . . . . . . . . . . Targets Rammed 2 | . . . 2 . . . . . . . . . . . . . . . . . . . . . Kicked . | . . . . . . . . . . . . . . . . . . . . . . . . . Crushed 1 | . . . 1 . . . . . . . . . . . . . . . . . . . . . Highest Temperature 409 | . . 126 168 26 197 . . 6 . . . . . 24 12 10 291 4 3 . . . 19 409 Average Temperature 74 | . . 41 83 17 99 . . 5 . . . . . 13 6 10 170 2 3 . . . 11 233 Received Heat Transfer 801 | . . 303 . 158 42 . . 97 . . 9 9 . . . 21 . . . . . . 9 153 Siege Activations . | . . . . . . . . . . . . . . . . . . . . . . . . . Martial Activations . | . . . . . . . . . . . . . . . . . . . . . . . . . Shielding Activations . | . . . . . . . . . . . . . . . . . . . . . . . . . Robots Disrupted . | . . . . . . . . . . . . . . . . . . . . . . . . . Combat Hostiles . | . . . . . . . . . . . . . . . . . . . . . . . . . Robots Corrupted 2 | . . . . . 1 . 1 . . . . . . . . . . . . . . . . . Combat Hostiles . | . . . . . . . . . . . . . . . . . . . . . . . . . Parts Fried 2 | . . . . . 2 . . . . . . . . . . . . . . . . . . . Impact Corruptions 10 | . . . . . 8 . 2 . . . . . . . . . . . . . . . . . Robots Melted 1 | . . 1 . . . . . . . . . . . . . . . . . . . . . . Combat Hostiles 1 | . . 1 . . . . . . . . . . . . . . . . . . . . . . Parts Melted 6 | . . 5 . . . . . . . . . . . . . . . . . . . . . 1 Heat Transferred 2726 | . . 1832 148 . . . . . . . . . . . . . . . . . . . . 746 Parts Sabotaged . | . . . . . . . . . . . . . . . . . . . . . . . . . Parts Stolen . | . . . . . . . . . . . . . . . . . . . . . . . . . Parts Stripped . | . . . . . . . . . . . . . . . . . . . . . . . . . Power Chain Reactions . | . . . . . . . . . . . . . . . . . . . . . . . . . Alert | -11 -10 -10 -9 -9 -6 -6 -6 -6 -6 -6 -6 -5 -5 -5 -5 -4 -4 -4 -4 -4 -3 -3 -3 -3 ------- Run | Yrd Mat Sub Rec Scr Fac Was Fac Ext Cet Arc Hub Fac Upp Upp War Pro Fac Upp Upp Zhi Pro Res Qua Frg Maximum Alert Level 3 | . . . . . 1 . . 3 2 1 2 2 . . . . 1 . . . . 1 . . Low Security (%) 77 | 100 100 . 100 . 84 100 100 77 1 14 41 52 . . . . 50 . . . . 88 100 100 Level 1 19 | . . . . . 15 . . 6 87 85 58 41 . . . . 49 . . . . 11 . . Level 2 2 | . . . . . . . . 15 10 . . 5 . . . . . . . . . . . . Level 3 . | . . . . . . . . . . . . . . . . . . . . . . . . . Level 4 . | . . . . . . . . . . . . . . . . . . . . . . . . . Level 5 . | . . . . . . . . . . . . . . . . . . . . . . . . . High Security . | . . . . . . . . . . . . . . . . . . . . . . . . . Max Security . | . . . . . . . . . . . . . . . . . . . . . . . . . Peak Influence 803 | 5 . . 150 . 278 95 98 803 449 298 418 434 . . . . 385 . . . . 302 74 136 Initial 449 | . . . 86 . . 95 36 16 449 76 76 158 . . . . 378 . . . . 300 7 34 Average 111 | 1 . . 41 . 98 78 53 143 271 240 237 218 . . . . 199 . . . . 58 28 47 Influence Increases 7597 | 20 . 355 177 . 778 27 211 1597 133 312 447 1034 . 125 40 175 726 90 . . . 544 308 498 Destroy 0b10 Robot/C 2440 | . . 200 60 . 160 . 40 680 80 80 180 440 . 80 40 . 80 80 . . . 40 . 200 Destroy 0b10 Robot/NC 215 | 20 . . 5 . 5 . 15 35 5 45 5 15 . 5 . 10 30 . . . . 10 . 10 Destroy Leader 296 | . . 20 . . 30 . 24 62 . . 30 72 . 10 . . 14 10 . . . 14 . 10 Allied During Kill 1174 | . . . . . . . 70 678 45 125 134 122 . . . . . . . . . . . . Successful Hack 320 | . . . 18 . 29 . 45 51 . . . 21 . . . . 25 . . . . 44 69 18 Select Force Hacks 140 | . . . 90 . . . . . . . 50 . . . . . . . . . . . . . Disable Machine 660 | . . . . . 135 . . 15 . 45 . 210 . . . . 45 . . . . . 120 90 Destroy Structure 642 | . . . 4 . 119 27 17 16 3 2 18 154 . . . . 142 . . . . 76 14 50 Advance Influence 600 | . . . . . . . . . . . . . . . . . 300 . . . . 300 . . Partial Spotted 165 | . . . . . 30 . . . . 15 15 . . . . . 15 . . . . 15 15 60 Lose Combat Pursuer 945 | . . 135 . . 270 . . 60 . . 15 . . 30 . 165 75 . . . . 45 90 60 Influence Decreases 7592 | 20 . 175 357 . 506 247 228 829 744 286 342 931 258 123 178 82 706 145 78 12 . 530 260 555 Entered New Map 1643 | . . . 94 . . 177 16 19 354 116 142 165 158 33 170 32 47 55 18 12 . . 7 28 Time Decay 3639 | 20 . 139 263 . 424 70 120 379 130 150 90 286 100 90 8 50 374 90 60 . . 350 109 337 Search Patrol Dispatched 100 | . . . . . . . . . . . . . . . . . 100 . . . . . . . Lost Part 236 | . . 36 . . . . . . . . 10 . . . . . . . . . . . . 190 Lost Ally 935 | . . . . . 10 . 20 295 260 20 100 180 . . . . 10 . . . . 30 10 . Purge Threat 1039 | . . . . . 72 . 72 136 . . . 300 . . . . 175 . . . . 150 134 . Squads Dispatched 49 | . . . . . 17 . 1 2 . . 5 9 . . . 1 4 . . . . 5 1 4 Investigation 24 | . . . . . 11 . 1 1 . . 2 4 . . . . 1 . . . . 2 1 1 Extermination 9 | . . . . . 3 . . . . . 1 1 . . . . 2 . . . . 2 . . Reinforcement 14 | . . . . . 3 . . . . . 2 4 . . . . 1 . . . . 1 . 3 Assault 2 | . . . . . . . . 1 . . . . . . . 1 . . . . . . . . Garrison . | . . . . . . . . . . . . . . . . . . . . . . . . . Intercept . | . . . . . . . . . . . . . . . . . . . . . . . . . Searches Triggered 1 | . . . . . . . . . . . . . . . . . 1 . . . . . . . Construction Impeded 1 | . . . . . . . . . . . 1 . . . . . . . . . . . . . Haulers Reinforced 3 | . . . . . 1 . . . . . . 1 . . . . . . . . . 1 . . Active Scanning Responses . | . . . . . . . . . . . . . . . . . . . . . . . . . Cargo Convoy Interrupts . | . . . . . . . . . . . . . . . . . . . . . . . . . Stealth | -11 -10 -10 -9 -9 -6 -6 -6 -6 -6 -6 -6 -5 -5 -5 -5 -4 -4 -4 -4 -4 -3 -3 -3 -3 --------- Run | Yrd Mat Sub Rec Scr Fac Was Fac Ext Cet Arc Hub Fac Upp Upp War Pro Fac Upp Upp Zhi Pro Res Qua Frg Distress Signals 13 | . . . . . 1 . . 4 1 . 2 1 . . . . 1 . . . . 1 1 1 Communications Jammed . | . . . . . . . . . . . . . . . . . . . . . . . . . Distress Signals . | . . . . . . . . . . . . . . . . . . . . . . . . . Times Spotted 302 | . . 25 2 8 31 5 2 36 6 8 12 22 2 7 13 17 30 5 . . 8 8 9 46 Peak Tracking Total 15 | . . 6 1 5 6 6 1 7 5 1 5 6 2 4 5 8 15 5 . . 8 3 7 7 Tactical Retreats 30 | . . 2 . . 9 1 . 3 . . 1 . . 1 . 3 1 . . . . 3 3 3 Traps | -11 -10 -10 -9 -9 -6 -6 -6 -6 -6 -6 -6 -5 -5 -5 -5 -4 -4 -4 -4 -4 -3 -3 -3 -3 ------- Run | Yrd Mat Sub Rec Scr Fac Was Fac Ext Cet Arc Hub Fac Upp Upp War Pro Fac Upp Upp Zhi Pro Res Qua Frg Traps Triggered 9 | . . . . . 1 . 2 1 . . . . . . . . 1 . . . . . . 4 Indirectly . | . . . . . . . . . . . . . . . . . . . . . . . . . Trap Hack Attempts . | . . . . . . . . . . . . . . . . . . . . . . . . . Triggered . | . . . . . . . . . . . . . . . . . . . . . . . . . Disarmed . | . . . . . . . . . . . . . . . . . . . . . . . . . Reprogrammed 6 | . . . . . . . . . . . . . . . . . 6 . . . . . . . Reused . | . . . . . . . . . . . . . . . . . . . . . . . . . Traps Extracted . | . . . . . . . . . . . . . . . . . . . . . . . . . Installed . | . . . . . . . . . . . . . . . . . . . . . . . . . Triggered . | . . . . . . . . . . . . . . . . . . . . . . . . . Machines | -11 -10 -10 -9 -9 -6 -6 -6 -6 -6 -6 -6 -5 -5 -5 -5 -4 -4 -4 -4 -4 -3 -3 -3 -3 ---------- Run | Yrd Mat Sub Rec Scr Fac Was Fac Ext Cet Arc Hub Fac Upp Upp War Pro Fac Upp Upp Zhi Pro Res Qua Frg Machines Disabled 55 | . . 1 . 1 9 . . 2 . 3 . 14 . . 1 . 3 . 1 . 1 1 8 10 Max in Single Turn 2 | . . 1 . 1 2 . . . . . . 1 . . 1 . 2 . 1 . 1 1 2 1 Garrison Access 3 | . . . . . 2 . 1 . . . . . . . . . . . . . . . . . Network Hub 1 | . . . . . . . . . . . 1 . . . . . . . . . . . . . Machines Repaired . | . . . . . . . . . . . . . . . . . . . . . . . . . Machines Dismantled . | . . . . . . . . . . . . . . . . . . . . . . . . . Machines Sabotaged 1 | . . . . . . . . . . . 1 . . . . . . . . . . . . . Overloaded Fab Kills . | . . . . . . . . . . . . . . . . . . . . . . . . . Hacking | -11 -10 -10 -9 -9 -6 -6 -6 -6 -6 -6 -6 -5 -5 -5 -5 -4 -4 -4 -4 -4 -3 -3 -3 -3 --------- Run | Yrd Mat Sub Rec Scr Fac Was Fac Ext Cet Arc Hub Fac Upp Upp War Pro Fac Upp Upp Zhi Pro Res Qua Frg Machines Accessed 110 | . . 4 5 4 27 . 8 13 . . 1 10 . . 4 . 8 1 1 4 1 8 8 3 Terminals 56 | . . . 2 . 10 . 6 12 . . 1 3 . . . . 6 . 1 . 1 5 7 2 Fabricators 8 | . . . . . 4 . . . . . . . . . . . 2 . . . . 2 . . Repair Stations 3 | . . . . . 1 . . 1 . . . 1 . . . . . . . . . . . . Recycling Units 16 | . . . 3 . 7 . 1 . . . . 4 . . . . . . . . . . . 1 Scanalyzers 7 | . . . . . 3 . . . . . . 2 . . . . . . . . . 1 1 . Garrison Access 3 | . . . . . 2 . 1 . . . . . . . . . . . . . . . . . Total Hacks 377 | . . 7 13 12 63 . 20 27 . . 2 26 . . 15 . 60 1 8 17 3 53 43 7 Successful 284 | . . 7 7 12 49 . 13 18 . . 1 17 . . 15 . 41 1 8 17 3 38 35 2 Failed 91 | . . . 6 . 14 . 7 9 . . 1 9 . . . . 19 . . . . 14 7 5 Catastrophic 12 | . . . 1 . . . . . . . . 1 . . . . 4 . . . . 2 2 2 Database Lockouts 2 | . . . . . . . . . . . . . . . . . . . . . . 1 1 . Manual 183 | . . . 14 . 34 . 10 7 1 . 2 11 . . . . 37 . . . . 33 30 4 Terminals 244 | . . . 9 . 27 . 18 24 . . 2 14 . . . . 52 . 8 . 3 41 41 5 Fabricators 33 | . . . . . 14 . . . . . . . . . . . 8 . . . . 11 . . Repair Stations 7 | . . . . . 2 . . 3 . . . 2 . . . . . . . . . . . . Recycling Units 20 | . . . 4 . 8 . 1 . . . . 5 . . . . . . . . . . . 2 Scanalyzers 16 | . . . . . 8 . . . . . . 5 . . . . . . . . . 1 2 . Garrison Access 5 | . . . . . 4 . 1 . . . . . . . . . . . . . . . . . Terminal Hacks 165 | . . 7 2 12 5 . 8 17 . . . 7 . . 15 . 22 1 8 17 3 21 20 . Record 34 | . . 4 . 6 . . . . . . . . . . 8 . . . 8 5 3 . . . Part Schematic 20 | . . . 2 . 1 . 1 4 . . . . . . . . 5 . . 4 . 2 1 . Robot Analysis 10 | . . . . 5 . . . . . . . . . . . . . . . 4 . . 1 . Prototype ID Bank 18 | . . . . . . . . 1 . . . . . . 6 . 1 . . 4 . 4 2 . Open Door 11 | . . 1 . . . . 1 7 . . . . . . 1 . . 1 . . . . . . Branch Access Points 4 | . . . . . 1 . 1 . . . . . . . . . 1 . . . . 1 . . Machine Index 2 | . . . . . . . . . . . . . . . . . . . . . . 1 1 . Terminal Index 3 | . . . . . . . . . . . . . . . . . 1 . . . . 1 1 . Fabricator Index 2 | . . . . . . . . . . . . . . . . . 1 . . . . 1 . . Recycling Unit Index 2 | . . . . . . . . . . . . . . . . . 1 . . . . 1 . . Garrison Index 3 | . . . . . . . 1 . . . . . . . . . 1 . . . . . 1 . Alert Level 7 | . . . . . . . . 1 . . . 1 . . . . 2 . . . . 1 2 . Unreport Threat 12 | . . . . . 1 . 1 2 . . . 2 . . . . 2 . . . . 1 3 . Locate Traps 14 | . . . . . 2 . 3 2 . . . . . . . . 2 . . . . 1 4 . Reprogram Traps 1 | . . . . . . . . . . . . . . . . . 1 . . . . . . . Patrol Status 4 | . . . . . . . . . . . . 1 . . . . 1 . . . . 1 1 . Recall Investigation 4 | . . . . . . . . . . . . 2 . . . . . . . . . 1 1 . Recall Extermination 3 | . . . . . . . . . . . . . . . . . 1 . . . . 2 . . Recall Reinforcements 1 | . . . . . . . . . . . . 1 . . . . . . . . . . . . Hauler Manifests 1 | . . . . . . . . . . . . . . . . . . . . . . 1 . . Registered Components 1 | . . . . . . . . . . . . . . . . . 1 . . . . . . . Registered Prototypes 3 | . . . . . . . . . . . . . . . . . 1 . . . . 1 1 . Zone Layout 2 | . . . . . . . . . . . . . . . . . . . . . . 1 1 . Proto ID Catalog 2 | . . 1 . 1 . . . . . . . . . . . . . . . . . . . . Release Object 1 | . . 1 . . . . . . . . . . . . . . . . . . . . . . Fabricator Hacks 23 | . . . . . 9 . . . . . . . . . . . 5 . . . . 9 . . Network Status 2 | . . . . . 1 . . . . . . . . . . . . . . . . 1 . . Load Schematic 13 | . . . . . 6 . . . . . . . . . . . 3 . . . . 4 . . Build 8 | . . . . . 2 . . . . . . . . . . . 2 . . . . 4 . . Repair Station Hacks 5 | . . . . . 2 . . 1 . . . 2 . . . . . . . . . . . . Scan Component 3 | . . . . . 1 . . 1 . . . 1 . . . . . . . . . . . . Repair 2 | . . . . . 1 . . . . . . 1 . . . . . . . . . . . . Recycling Unit Hacks 1 | . . . . . . . . . . . . 1 . . . . . . . . . . . . Retrieve Components 1 | . . . . . . . . . . . . 1 . . . . . . . . . . . . Scanalyzer 14 | . . . . . 8 . . . . . . 3 . . . . . . . . . 1 2 . Insert Component 8 | . . . . . 3 . . . . . . 2 . . . . . . . . . 1 2 . Analyze 3 | . . . . . 2 . . . . . . 1 . . . . . . . . . . . . Retrieve Study 3 | . . . . . 3 . . . . . . . . . . . . . . . . . . . Garrison Access Hacks 3 | . . . . . 2 . 1 . . . . . . . . . . . . . . . . . Seal Access 3 | . . . . . 2 . 1 . . . . . . . . . . . . . . . . . Unauthorized Hacks 73 | . . . 5 . 23 . 4 . . . 1 4 . . . . 14 . . . . 7 13 2 Terminals 49 | . . . 2 . 12 . 3 . . . 1 . . . . . 11 . . . . 6 13 1 Track 5 | . . . . . 2 . . . . . . . . . . . . . . . . . 3 . Assimilate 9 | . . . . . 3 . . . . . . . . . . . 1 . . . . 3 1 1 Botnet 11 | . . . 1 . 1 . 1 . . . . . . . . . 4 . . . . 1 3 . Operators 5 | . . . . . 1 . 1 . . . . . . . . . 1 . . . . 1 1 . Skim 18 | . . . 1 . 5 . 1 . . . . . . . . . 5 . . . . 1 5 . Sabotage 1 | . . . . . . . . . . . 1 . . . . . . . . . . . . . Fabricators 8 | . . . . . 4 . . . . . . . . . . . 3 . . . . 1 . . Prioritize 2 | . . . . . . . . . . . . . . . . . 1 . . . . 1 . . Haulers 1 | . . . . . . . . . . . . . . . . . 1 . . . . . . . Recompile 5 | . . . . . 4 . . . . . . . . . . . 1 . . . . . . . Repair Stations . | . . . . . . . . . . . . . . . . . . . . . . . . . Recycling Units 16 | . . . 3 . 7 . 1 . . . . 4 . . . . . . . . . . . 1 Tunnel 3 | . . . 3 . . . . . . . . . . . . . . . . . . . . . Fedlink 10 | . . . . . 7 . . . . . . 2 . . . . . . . . . . . 1 Scrapoids 3 | . . . . . . . 1 . . . . 2 . . . . . . . . . . . . Scanalyzers . | . . . . . . . . . . . . . . . . . . . . . . . . . Garrison Access . | . . . . . . . . . . . . . . . . . . . . . . . . . Data Cores Recovered 2 | . . . . . . . 1 1 . . . . . . . . . . . . . . . . Used 2 | . . . . . . . 1 1 . . . . . . . . . . . . . . . . Hacking Detections 57 | . . . 2 . 17 . 5 6 1 . 1 5 . . . . 6 . . . 1 7 3 3 Full Trace Events 4 | . . . 1 . . . . . . . . . . . . . . . . . . 2 1 . Feedback Events . | . . . . . . . . . . . . . . . . . . . . . . . . . Feedback Blocked . | . . . . . . . . . . . . . . . . . . . . . . . . . Robot Schematics Acquired . | . . . . . . . . . . . . . . . . . . . . . . . . . Robots Built . | . . . . . . . . . . . . . . . . . . . . . . . . . Authchips . | . . . . . . . . . . . . . . . . . . . . . . . . . Time . | . . . . . . . . . . . . . . . . . . . . . . . . . Total Robot Build Rating . | . . . . . . . . . . . . . . . . . . . . . . . . . Part Schematics Acquired 60 | . . . 2 . 12 2 4 8 4 1 1 6 2 2 3 . 5 . . 4 . 2 1 1 Parts Built 10 | . . . . . 3 . . . . . . . . . . . 2 . . . . 5 . . Authchips 6 | . . . . . 2 . . . . . . . . . . . 2 . . . . 2 . . Time 513 | . . . . . 78 . . . . . . . . . . . 186 . . . . 249 . . Total Part Build Rating 53 | . . . . . 10 . . . . . . . . . . . 14 . . . . 29 . . Part Studies Acquired 3 | . . . . . 3 . . . . . . . . . . . . . . . . . . . Parts Repaired 2 | . . . . . 1 . . . . . . 1 . . . . . . . . . . . . Time 131 | . . . . . 32 . . . . . . 99 . . . . . . . . . . . . Parts Recycled . | . . . . . . . . . . . . . . . . . . . . . . . . . Recycled Matter . | . . . . . . . . . . . . . . . . . . . . . . . . . Retrieved Matter . | . . . . . . . . . . . . . . . . . . . . . . . . . Retrieved Components 4 | . . . . . . . . . . . . 4 . . . . . . . . . . . . Parts Scanalyzed 3 | . . . . . 2 . . . . . . 1 . . . . . . . . . . . . Part Schematics Acquired 3 | . . . . . 2 . . . . . . 1 . . . . . . . . . . . . Parts Damaged . | . . . . . . . . . . . . . . . . . . . . . . . . . Bothacking | -11 -10 -10 -9 -9 -6 -6 -6 -6 -6 -6 -6 -5 -5 -5 -5 -4 -4 -4 -4 -4 -3 -3 -3 -3 ------------ Run | Yrd Mat Sub Rec Scr Fac Was Fac Ext Cet Arc Hub Fac Upp Upp War Pro Fac Upp Upp Zhi Pro Res Qua Frg Used RIF Installer . | . . . . . . . . . . . . . . . . . . . . . . . . . Robots Hacked 1 | . . . . . . . 1 . . . . . . . . . . . . . . . . . Non-combat 1 | . . . . . . . 1 . . . . . . . . . . . . . . . . . Combat . | . . . . . . . . . . . . . . . . . . . . . . . . . Robot Hacks Applied 1 | . . . . . . . 1 . . . . . . . . . . . . . . . . . find_fabricator 1 | . . . . . . . 1 . . . . . . . . . . . . . . . . . Relay Couplers Released . | . . . . . . . . . . . . . . . . . . . . . . . . . Fabnet Peak Effective % . | . . . . . . . . . . . . . . . . . . . . . . . . . Robots Rewired 17 | . . . . . . . . 17 . . . . . . . . . . . . . . . . Allies Hacked 1 | . . . . . . . . . . . 1 . . . . . . . . . . . . . Hacks Repelled . | . . . . . . . . . . . . . . . . . . . . . . . . . Allies | -11 -10 -10 -9 -9 -6 -6 -6 -6 -6 -6 -6 -5 -5 -5 -5 -4 -4 -4 -4 -4 -3 -3 -3 -3 -------- Run | Yrd Mat Sub Rec Scr Fac Was Fac Ext Cet Arc Hub Fac Upp Upp War Pro Fac Upp Upp Zhi Pro Res Qua Frg Total Allies 69 | . . . . . 1 18 5 25 5 . . 10 . . . . 1 . . . . 3 1 . Largest Group 23 | . . . . . 1 18 23 22 15 7 5 5 . . . . 1 . . . . 1 1 . Highest-Rated Group 778 | . . . . . 10 638 778 729 528 522 404 238 . . . . 26 . . . . 45 10 . Highest-Rated Ally 159 | . . . . . 10 50 50 159 146 96 96 50 . . . . 26 . . . . 45 10 . Total Orders 5 | . . . . . . . . 1 1 . . . . . . . 2 . . . . 1 . . STAY 2 | . . . . . . . . . . . . . . . . . 1 . . . . 1 . . FOLLOW 1 | . . . . . . . . . . . . . . . . . 1 . . . . . . . AID 2 | . . . . . . . . 1 1 . . . . . . . . . . . . . . . Ally Attacks 592 | . . . . . . 90 34 264 45 19 34 106 . . . . . . . . . . . . Total Damage 17181 | . . . . . . 3587 861 6432 1085 706 1646 2864 . . . . . . . . . . . . Kills 90 | . . . . . . 6 4 40 4 4 10 22 . . . . . . . . . . . . Allies Corrupted 1 | . . . . . . . . . . . 1 . . . . . . . . . . . . . Allies Melted 3 | . . . . 2 . . . . . . 1 . . . . . . . . . . . . . Intel | -11 -10 -10 -9 -9 -6 -6 -6 -6 -6 -6 -6 -5 -5 -5 -5 -4 -4 -4 -4 -4 -3 -3 -3 -3 ------- Run | Yrd Mat Sub Rec Scr Fac Was Fac Ext Cet Arc Hub Fac Upp Upp War Pro Fac Upp Upp Zhi Pro Res Qua Frg Active Infowar (turns) 8285 | 22 154 1055 . . 1086 152 267 151 . 110 181 621 200 193 410 148 873 193 133 67 76 1187 248 758 Optics 5396 | . . . . . . . . . . 108 181 621 200 193 410 148 873 193 133 67 76 1187 248 758 Sensors 4942 | . . . . . 1086 152 244 151 . 2 . . . . . . 824 193 133 67 76 1187 244 583 Terrain 1043 | 2 . 1041 . . . . . . . . . . . . . . . . . . . . . . Structural 3839 | . . . . . . . 23 . . 107 181 603 200 193 182 148 863 193 133 57 76 338 225 317 Seismic 188 | 20 154 14 . . . . . . . . . . . . . . . . . . . . . . Jamming 361 | . . . . . . . . . . . . . . . . . . . . . . 30 1 330 Robot Analysis Total 10 | . . . . 5 . . . . . . . . . . . . . . . 4 . . 1 . Derelict Logs Recovered 11 | . . 2 . 3 . . . . . . . . 2 1 . . . 1 2 . . . . . Drone Launches . | . . . . . . . . . . . . . . . . . . . . . . . . . Drone Recoveries . | . . . . . . . . . . . . . . . . . . . . . . . . . Exploration | -11 -10 -10 -9 -9 -6 -6 -6 -6 -6 -6 -6 -5 -5 -5 -5 -4 -4 -4 -4 -4 -3 -3 -3 -3 ------------- Run | Yrd Mat Sub Rec Scr Fac Was Fac Ext Cet Arc Hub Fac Upp Upp War Pro Fac Upp Upp Zhi Pro Res Qua Frg Turns Passed 19175 | 170 154 5145 1050 3822 1419 152 281 1081 265 313 181 621 200 193 410 148 873 193 133 67 76 1187 248 793 Spaces Moved 18195 | 76 97 1991 393 1526 2456 264 515 1193 114 335 257 749 511 428 812 337 1726 477 400 155 226 1309 497 1351 Core 3 | 2 . . . . . . . . . . . . . . . . . . . . . . . 1 Treads 3666 | 74 97 1991 393 1111 . . . . . . . . . . . . . . . . . . . . Legs . | . . . . . . . . . . . . . . . . . . . . . . . . . Wheels 532 | . . . . 415 117 . . . . . . . . . . . . . . . . . . . Hover . | . . . . . . . . . . . . . . . . . . . . . . . . . Flight 13994 | . . . . . 2339 264 515 1193 114 335 257 749 511 428 812 337 1726 477 400 155 226 1309 497 1350 Fastest Speed 15 | 50 160 160 260 100 34 34 34 34 34 34 34 32 37 37 37 37 32 32 32 32 28 32 29 15 Average Speed 76 | 157 160 203 260 225 37 34 34 34 34 34 47 60 37 37 40 37 32 32 32 32 31 32 34 29 Slowest Speed 260 | 160 160 260 260 260 130 94 94 34 34 34 80 80 37 37 97 37 109 32 32 32 32 34 97 250 Overloaded Moves 99 | . . . . . . . . . . . . . . . . . . . . . 8 . 44 47 Propulsion Burnouts . | . . . . . . . . . . . . . . . . . . . . . . . . . Robots Hopped 26 | . . . . . 12 1 1 . . . 1 1 . . 2 . 5 . 1 . . 2 . . Potential Cave-ins 6 | . . 4 . . . . 2 . . . . . . . . . . . . . . . . . Cave-ins Triggered . | . . . . . . . . . . . . . . . . . . . . . . . . . Teleports 1 | . . . . . . . . . . . . . . . . . . . . . . . . 1 Exploration Rate (%) 55 | 5 15 87 44 80 62 90 13 84 48 93 22 27 86 63 90 63 35 67 55 61 53 26 66 55 Regions Visited 24 Branch Regions 17 Pre-discovered Areas 12 | . . . 3 1 3 . . . . . . . . . . . . 1 1 3 . . . . Known Exits Taken 15 | . . . . . . . 1 1 1 . 1 1 1 1 . 1 1 1 1 1 1 1 1 . Unknown Exits Taken 7 | 1 1 1 1 1 . . . . . 1 . . . . 1 . . . . . . . . . Scrap Searched 16 | . . 2 . 2 . . . . . . . . 1 2 . . . 2 5 . 2 . . . Spaces Dug 307 | . . 2 . . 76 . 9 . . . 2 13 1 49 . 11 44 19 3 . 11 36 7 24 Terrain Destroyed 493 | . . 18 4 12 121 . 9 . . . 2 21 1 49 17 11 97 44 3 . 11 36 7 30 Melee 56 | . . . . . 24 . 2 . . . 2 8 1 3 . . 15 . . . . 1 . . Projectile 24 | . . 18 4 . . . . . . . . . . . 1 . . . . . . . . 1 AOE 241 | . . . . 12 54 . . . . . . 8 . 38 16 . 71 37 . . . . . 5 Terrain Rammed . | . . . . . . . . . . . . . . . . . . . . . . . . . Walls Destroyed . | . . . . . . . . . . . . . . . . . . . . . . . . . Machines Disabled . | . . . . . . . . . . . . . . . . . . . . . . . . . Actions | -11 -10 -10 -9 -9 -6 -6 -6 -6 -6 -6 -6 -5 -5 -5 -5 -4 -4 -4 -4 -4 -3 -3 -3 -3 --------- Run | Yrd Mat Sub Rec Scr Fac Was Fac Ext Cet Arc Hub Fac Upp Upp War Pro Fac Upp Upp Zhi Pro Res Qua Frg Total 22796 | 105 96 2830 412 1913 2850 324 604 1854 332 500 310 901 520 448 893 352 1977 511 402 173 228 2046 572 1643 Wait 3630 | 3 . 634 6 336 285 59 49 605 214 123 52 111 4 4 46 6 179 20 . . 2 702 61 129 Move 18121 | 75 96 1990 392 1525 2432 261 512 1192 113 334 254 746 510 427 808 336 1715 476 397 154 225 1304 496 1351 Hop 25 | . . . . . 12 1 1 . . . 1 1 . . 1 . 5 . 1 . . 2 . . Pick Up 131 | 8 . 18 7 25 18 1 3 2 . 3 . 6 2 1 7 . 7 1 1 4 . 7 3 7 Fast Attach 81 | 5 . 9 . 4 11 . 1 . . 3 . 7 . . 7 . 7 3 1 6 . 2 2 13 Attach 62 | 3 . 9 . . 12 . 1 . . 3 . 5 1 1 3 . 4 1 . . . 5 1 13 Detach 25 | 1 . 1 . . 7 . . . . 1 . 3 . . 1 . 2 . . . . 1 . 8 Swap 102 | . . 15 . 2 15 . 10 1 . 1 . 1 . 6 3 8 17 4 1 1 1 6 4 6 Drop 144 | . . 24 1 18 16 2 5 2 . 8 . 10 2 1 14 . 8 3 1 8 . 5 5 11 Fire 190 | 10 . 123 4 1 5 . . . . . . 1 . 2 3 . 2 3 . . . . . 36 Melee 214 | . . . . 2 37 . 7 35 5 24 3 10 1 6 . 2 31 . . . . 12 . 39 Ram . | . . . . . . . . . . . . . . . . . . . . . . . . . Kick . | . . . . . . . . . . . . . . . . . . . . . . . . . Crush 2 | . . . 2 . . . . . . . . . . . . . . . . . . . . . Escape Stasis 60 | . . . . . . . 15 15 . . . . . . . . . . . . . . . 30 Rewire 2 | . . . . . . . . 2 . . . . . . . . . . . . . . . . Trap . | . . . . . . . . . . . . . . . . . . . . . . . . . Miscellaneous 7 | . . 7 . . . . . . . . . . . . . . . . . . . . . . Route ------- -11/Scrapyard -10/Materials -10/Subcaves (discovered 3 exits: [*Mat] / *Rec / *Scr) -9/Recycling -9/Scraptown (discovered 2 exits: *Fac x2) -6/Factory (discovered 6 exits: *Fac x2 / Low x2 / *Ext x2) -6/Waste -6/Factory (discovered 4 exits: Low x2 / *Ext x2) -6/Extension (discovered 2 exits: *Fac / *Cet) -6/Cetus -6/Archives (discovered 3 exits: *Fac / *Hub x2) -6/Hub_04(d) -5/Factory -5/Upper Caves -5/Upper Caves (discovered 2 exits: *Fac / *War) -5/Warlord -4/Proximity Caves -4/Factory (discovered 3 exits: *Res / *Upp x2) -4/Upper Caves -4/Upper Caves -4/Zhirov -3/Proximity Caves -3/Research (discovered 4 exits: Res / Arm / *Qua x2) -3/Quarantine (discovered 2 exits: [*Sec] / *Frg) -3/Protoforge (discovered 1 exit: *Res) History --------- Turn | Location | Event 36 | -11/Scrapyard | Discovered new exit (range 16) 171 | -11/Scrapyard | Entered Materials 305 | -10/Materials | Build established: Mutant 307 | -10/Materials | Discovered new exit (range 8) 325 | -10/Materials | Entered Subcaves 326 | -10/Subcaves | Approached by a straggling Scientist 428 | -10/Subcaves | A swath of the cavern ceiling suddenly collapsed 648 | -10/Subcaves | Ambushed by Subdweller buried in earth 941 | -10/Subcaves | Discovered new exit (range 11) 1775 | -10/Subcaves | Shifting Twisted Machinery released Sub. Beam Cannon 1780 | -10/Subcaves | Shifting Twisted Machinery released Mak. Hacking Suite 1797 | -10/Subcaves | Visited Clippyterm 1802 | -10/Subcaves | Learned Factory trap positions 1802 | -10/Subcaves | Learned Factory emergency access door positions 1976 | -10/Subcaves | Learned Materials non-interactive machine intel 2004 | -10/Subcaves | Learned Materials non-interactive machine intel 2334 | -10/Subcaves | Visited 4L-MR0's lab 2429 | -10/Subcaves | Build established: Subdweller-Mutant 2614 | -10/Subcaves | Shifting Twisted Machinery released Riot Gun 2636 | -10/Subcaves | Shifting Twisted Machinery released Spk. Treads 2683 | -10/Subcaves | Shifting Twisted Machinery released Sub. Machine Gun 2714 | -10/Subcaves | Shifting Twisted Machinery released Riot Gun 2940 | -10/Subcaves | A swath of the cavern ceiling suddenly collapsed 3261 | -10/Subcaves | Build established: Mutant 3854 | -10/Subcaves | Found SUBCON Basin 4467 | -10/Subcaves | Found Flightbrick 5465 | -10/Subcaves | Discovered new exit (range 3) 5470 | -10/Subcaves | Entered Recycling 5793 | -9/Recycling | Scanned before Scraplab entrance 5829 | -9/Recycling | Entered Scraplab 6515 | -9/Recycling | Discovered new exit (range 3) 6520 | -9/Recycling | Entered Scraptown 6606 | -9/Scraptown | Visited The Evicted 6689 | -9/Scraptown | Visited UFD Registry 6757 | -9/Scraptown | Visited Shadow of the Wyrm 6801 | -9/Scraptown | Registered with UFD as "Metalcore" 6838 | -9/Scraptown | Visited Cyclists 6856 | -9/Scraptown | Entered Cyclist Reading Room 6923 | -9/Scraptown | Visited Assassins FH 6960 | -9/Scraptown | Heard Great Nut preacher, LISTEN AND RECITE! 6970 | -9/Scraptown | Visited Observation Area 6991 | -9/Scraptown | Visited Cave Peace 7007 | -9/Scraptown | Visited Red Mages 7051 | -9/Scraptown | Found Relay Coupler [Proto] 7197 | -9/Scraptown | Scanned Subdweller tech in exchange for log data 7203 | -9/Scraptown | Learned location of Warlord (-5) 7205 | -9/Scraptown | Learned Research trap positions 7208 | -9/Scraptown | Learned location of 1 exit from Factory 7236 | -9/Scraptown | Discovered new exit (range 11) 7494 | -9/Scraptown | Visited Science Guys 7585 | -9/Scraptown | Visited Junk Repository 7673 | -9/Scraptown | Visited Abandonware Association 7699 | -9/Scraptown | Learned abandonware demo "KABOOM.EXE" 7699 | -9/Scraptown | Learned abandonware demo "MELTYB.EXE" 7819 | -9/Scraptown | Visited Derelict Rescue Squad 7834 | -9/Scraptown | Found DRS Beacon 7880 | -9/Scraptown | Visited Junk Repository 8036 | -9/Scraptown | Delivered Scrap Shield to a Scientist 8281 | -9/Scraptown | Visited LU-1G1's Boring Crew 8325 | -9/Scraptown | Visited Scrapoid Research Area 8377 | -9/Scraptown | Visited Analyses Database 9843 | -9/Scraptown | Met Optimus 9843 | -9/Scraptown | Accepted into 0bPrime 10243 | -9/Scraptown | Civil war broke out across Scraptown 10253 | -9/Scraptown | Found Prototype Special Weapon 10332 | -9/Scraptown | Discovered new exit (range 8) 10342 | -9/Scraptown | Entered Factory 10342 | -6/Factory | Evolved 8 slots: Power x1, Propulsion x3, Utility x4 10342 | -6/Factory | Identified LU-1G1's Laser Shovel 10343 | -6/Factory | Identified exit to Factory 10344 | -6/Factory | Loaded intel: 64 trap records 10349 | -6/Factory | Lost 9 allies 10511 | -6/Factory | Attached Flightbrick, gained temporary slots: Utility x3 10674 | -6/Factory | Build established: Hacker-Mutant 10723 | -6/Factory | Tech Extrapolator generated special schematic: Deep Structural Scanner 10729 | -6/Factory | Repaired Mni. Grenade Launcher 10869 | -6/Factory | Loaded intel: 8 recycling unit locations 10983 | -6/Factory | Learned location of Protoforge (-3) 11196 | -6/Factory | Fabricated Deep Structural Scanner (x1) 11208 | -6/Factory | Discovered exit to Factory (range 16) 11282 | -6/Factory | Fabricated Imp. Utility Shielding (x2) 11377 | -6/Factory | Identified exit to Lower Caves 11377 | -6/Factory | Identified exit to Extension 11505 | -6/Factory | Learned Extension emergency access door positions 11541 | -6/Factory | Learned Extension emergency access door positions 11567 | -6/Factory | Learned 4 Extension zone layouts 11582 | -6/Factory | Learned Hub_04(d) garrison access intel 11588 | -6/Factory | Learned location of 1 exit from Extension 11589 | -6/Factory | Learned location of 1 exit from Upper Caves 11594 | -6/Factory | Learned location of 1 exit from Upper Caves 11626 | -6/Factory | Learned location of Upper Caves (-5) 11761 | -6/Factory | Manually triggered Chute Trap 11761 | -6/Factory | Sucked down chute 11761 | -6/Factory | Entered Waste 11763 | -6/Waste | Spotted C-40 Crusher 11769 | -6/Waste | Found Prototype Processor 11773 | -6/Waste | Spotted C-40 Crusher 11774 | -6/Waste | Spotted C-40 Crusher 11775 | -6/Waste | Spotted C-40 Crusher 11776 | -6/Waste | Spotted C-40 Crusher 11780 | -6/Waste | Discovered new exit (range 16) 11800 | -6/Waste | Warlord forces began an assault 11826 | -6/Waste | Allies destroyed C-40 Crusher 11876 | -6/Waste | Identified exit to Factory 11913 | -6/Waste | Entered Factory 11913 | -6/Factory | Accompanied by 18 allies 12060 | -6/Factory | Scrapoids reinforcements arrived? 12125 | -6/Factory | Tech Extrapolator generated special schematic: Energy Deflector 12194 | -6/Factory | Entered Extension 12194 | -6/Extension | Accompanied by 19 allies 12195 | -6/Extension | Identified exit to Cetus 12277 | -6/Extension | Spotted B-75 Beast 12351 | -6/Extension | Lost 17 allies 12369 | -6/Extension | Rescued a captive Derelict 12369 | -6/Extension | Rescued a captive Derelict 12372 | -6/Extension | Rescued A7 12434 | -6/Extension | Rescued a captive Derelict 12506 | -6/Extension | Rescued a captive Derelict 12525 | -6/Extension | Rescued a captive Derelict 12794 | -6/Extension | Build established: Commander-Mutant 12936 | -6/Extension | Rescued a captive Derelict 13080 | -6/Extension | Lost 3 allies 13090 | -6/Extension | Rescued a captive Derelict 13214 | -6/Extension | Discovered exit to Factory (range 10) 13244 | -6/Extension | First assault squad dispatched 13274 | -6/Extension | Disrupted transfer network 13275 | -6/Extension | Entered Cetus 13275 | -6/Cetus | Accompanied by 15 allies (A7) 13280 | -6/Cetus | Acquired a Cetus Manufacturing Module code from A7 13289 | -6/Cetus | Spotted Cetus Guard 13300 | -6/Cetus | Spotted Cetus Guard 13306 | -6/Cetus | Allies destroyed Cetus Guard 13309 | -6/Cetus | Spotted Cetus Guard 13309 | -6/Cetus | Spotted Cetus Guard 13320 | -6/Cetus | Allies destroyed Cetus Guard 13322 | -6/Cetus | Allies destroyed Cetus Guard 13335 | -6/Cetus | Allies destroyed Cetus Guard 13337 | -6/Cetus | Extracted ID and sensor layout for unrecognized location from A7's data core 13356 | -6/Cetus | Started Cetus Manufacturing Module 13359 | -6/Cetus | Lost 15 allies 13360 | -6/Cetus | Discovered new exit (range 15) 13381 | -6/Cetus | Manufactured an Enhanced Grunt 13406 | -6/Cetus | Manufactured an Enhanced Grunt 13431 | -6/Cetus | Manufactured an Enhanced Grunt 13456 | -6/Cetus | Manufactured an Enhanced Grunt 13481 | -6/Cetus | Manufactured an Enhanced Grunt 13519 | -6/Cetus | Identified exit to Archives 13540 | -6/Cetus | Entered Archives 13540 | -6/Archives | Accompanied by 7 allies 13606 | -6/Archives | Discovered new exit (range 16) 13622 | -6/Archives | Discovered new exit (range 13) 13638 | -6/Archives | Discovered exit to Factory (range 16) 13853 | -6/Archives | Entered Hub_04(d) 13853 | -6/Hub_04(d) | Accompanied by 5 allies 13854 | -6/Hub_04(d) | Loaded intel: 2 garrison access locations 13862 | -6/Hub_04(d) | Build established: Hacker-Mutant 13899 | -6/Hub_04(d) | Discovered exit to Factory (range 7) 13940 | -6/Hub_04(d) | Network Hub disabled 13986 | -6/Hub_04(d) | Lost 3 allies 14034 | -6/Hub_04(d) | Entered Factory 14034 | -5/Factory | Evolved 2 slots: Propulsion x1, Utility x1 14119 | -5/Factory | Scrapoids reinforcements arrived? 14340 | -5/Factory | Identified Exp. Terrain Scan Processor 14424 | -5/Factory | Scrapoid reinforcements arrived 14466 | -5/Factory | Repaired Exp. Terrain Scan Processor? 14470 | -5/Factory | Lost 5 allies 14527 | -5/Factory | Spotted B-75 Beast 14561 | -5/Factory | Loaded intel: 6 recycling unit locations 14631 | -5/Factory | Discovered new exit (range 12) 14647 | -5/Factory | Identified exit to Upper Caves 14655 | -5/Factory | Entered Upper Caves 14656 | -5/Upper Caves | Identified exit to Upper Caves 14657 | -5/Upper Caves | UFD Scientist delivered a prototype 14659 | -5/Upper Caves | Found Prototype Protection 14683 | -5/Upper Caves | Encountered a Warlord checkpoint 14716 | -5/Upper Caves | Tech Extrapolator generated special schematic: Machine Rigger 14811 | -5/Upper Caves | Learned Factory emergency access door positions 14855 | -5/Upper Caves | Entered another Upper Caves area 14856 | -5/Upper Caves | Identified exit to Warlord 14857 | -5/Upper Caves | Identified exit to Factory 14928 | -5/Upper Caves | Found DCF Scrap (12 items) 15020 | -5/Upper Caves | Learned Factory security intel 15043 | -5/Upper Caves | Spotted B-75 Beast 15048 | -5/Upper Caves | Entered Warlord 15062 | -5/Warlord | System corruption cleaned by Quarantine Array 15240 | -5/Warlord | Visited the Vortex Lab 15244 | -5/Warlord | Found Prototype Energy Gun 15244 | -5/Warlord | Identified Vortex Rifle 15249 | -5/Warlord | Found Prototype Energy Gun 15249 | -5/Warlord | Identified Vortex Rail 15254 | -5/Warlord | Warlord's base attacked by MAIN.C 15257 | -5/Warlord | Found Vortex Rifle 15308 | -5/Warlord | Found Prototype Device 15308 | -5/Warlord | Identified Exp. Focal Shield 15314 | -5/Warlord | Found Prototype Hackware 15314 | -5/Warlord | Identified Ghost Barrier 15319 | -5/Warlord | Found Prototype Processor 15323 | -5/Warlord | Identified Exp. Targeting Computer 15356 | -5/Warlord | Found Vortex Rail 15382 | -5/Warlord | Rebuked by Warlord 15454 | -5/Warlord | Spotted B-75 Beast 15454 | -5/Warlord | Discovered new exit (range 13) 15456 | -5/Warlord | Spotted B-86 Titan 15458 | -5/Warlord | Entered Proximity Caves 15471 | -4/Proximity Caves | Lost 7 allies 15528 | -4/Proximity Caves | Attracted the attention of an 0b10 outpost 15528 | -4/Proximity Caves | Spotted B-86 Titan 15552 | -4/Proximity Caves | Spotter reported a threat 15594 | -4/Proximity Caves | Discovered exit to Factory (range 22) 15605 | -4/Proximity Caves | Spotter reported a threat 15606 | -4/Proximity Caves | Entered Factory 15606 | -4/Factory | Evolved 2 slots: Propulsion x1, Utility x1 15856 | -4/Factory | Search patrols dispatched 15878 | -4/Factory | Fabricated Exp. Hacking Suite (x1) 15944 | -4/Factory | Build established: Hacker-Scout 15978 | -4/Factory | Fabricated Exp. Hacking Suite? 16156 | -4/Factory | Discovered new exit (range 6) 16157 | -4/Factory | Identified exit to Research 16428 | -4/Factory | Identified exit to Upper Caves 16470 | -4/Factory | Learned Armory stockpile data 16479 | -4/Factory | Entered Upper Caves 16539 | -4/Upper Caves | Learned location of Quarantine (-3) 16581 | -4/Upper Caves | Discovered new exit (range 15) 16623 | -4/Upper Caves | Found Alien Artifact 16623 | -4/Upper Caves | Identified Core Expander 16623 | -4/Upper Caves | Installed Core Expander, added new Power slot 16667 | -4/Upper Caves | Identified exit to Upper Caves 16672 | -4/Upper Caves | Entered another Upper Caves area 16683 | -4/Upper Caves | Learned Armory terminal intel 16706 | -4/Upper Caves | Found DCF Scrap (12 items) 16763 | -4/Upper Caves | Encountered a Warlord checkpoint 16763 | -4/Upper Caves | Learned location of 2 exits from Research 16787 | -4/Upper Caves | Learned Research emergency access door positions 16801 | -4/Upper Caves | Discovered new exit (range 13) 16804 | -4/Upper Caves | Identified exit to Zhirov 16805 | -4/Upper Caves | Entered Zhirov 16805 | -4/Zhirov | Discovered new exit (range 3) 16813 | -4/Zhirov | Met Zhirov 16820 | -4/Zhirov | Learned location of Testing (-2) 16820 | -4/Zhirov | Learned location of Command (-1) 16822 | -4/Zhirov | Zhirov requested help retrieving the SGEMP Prototype 16827 | -4/Zhirov | Found Alien Artifact 16827 | -4/Zhirov | Identified Integrated Dissipator 16827 | -4/Zhirov | Installed Integrated Dissipator, increased core heat dissipation (+20) 16851 | -4/Zhirov | Found Alien Artifact 16872 | -4/Zhirov | Identified exit to Proximity Caves 16872 | -4/Zhirov | Entered Proximity Caves 16887 | -3/Proximity Caves | Learned Armory terminal intel 16887 | -3/Proximity Caves | Learned 6 Lower Caves zone layouts 16887 | -3/Proximity Caves | Learned 8 Research zone layouts 16935 | -3/Proximity Caves | Spotter reported a threat 16935 | -3/Proximity Caves | Spotter reported a threat 16941 | -3/Proximity Caves | Discovered exit to Research (range 20) 16948 | -3/Proximity Caves | Entered Research 16948 | -3/Research | Evolved 2 slots: Utility x1, Weapon x1 16949 | -3/Research | Identified exit to Research 16949 | -3/Research | Identified exit to Quarantine 16951 | -3/Research | Loaded intel: 95 trap records 16963 | -3/Research | Identified exit to Armory 17079 | -3/Research | Spotted B-86 Titan 17182 | -3/Research | Fabricated Exp. Transmission Jammer (x1) 17280 | -3/Research | Build established: Wizard-Scout 17405 | -3/Research | Central database locked down 17468 | -3/Research | Fabricated Exp. Utility Shielding? 17702 | -3/Research | Fabricated Exp. Utility Shielding? 17949 | -3/Research | Fabricated Jamming Amplifier (x2) 18135 | -3/Research | Entered Quarantine 18172 | -3/Quarantine | Found Alien Artifact 18172 | -3/Quarantine | Identified Phase Redirector 18223 | -3/Quarantine | Central database locked down 18264 | -3/Quarantine | Cryocooling Duct disabled 18264 | -3/Quarantine | Cryocooling Duct disabled 18270 | -3/Quarantine | Found Alien Artifact 18273 | -3/Quarantine | Found Alien Artifact 18279 | -3/Quarantine | Ambient heat levels rising (+40) 18279 | -3/Quarantine | Non-combat units ordered to evacuate 18279 | -3/Quarantine | Combat units ordered to evacuate 18289 | -3/Quarantine | Identified Dimensional Node Initializer 18289 | -3/Quarantine | Identified Transdimensional Reconstructor (x2) 18303 | -3/Quarantine | Found Alien Artifact 18356 | -3/Quarantine | Spotted Fortress 18378 | -3/Quarantine | Discovered new exit (range 6) 18378 | -3/Quarantine | Discovered new exit (range 7) 18379 | -3/Quarantine | Quarantine Guard activated 18380 | -3/Quarantine | Identified exit to Protoforge 18383 | -3/Quarantine | Entered Protoforge 18403 | -3/Protoforge | Spotted Hotshot 18403 | -3/Protoforge | Spotted Hotshot 18442 | -3/Protoforge | Discovered exit to Research (range 16) 18454 | -3/Protoforge | Identified Subatomic Replicator 18454 | -3/Protoforge | Used Subatomic Replicator to create Alien Artifact 18520 | -3/Protoforge | Spotted Hotshot 18571 | -3/Protoforge | Superfortress began startup sequence 18591 | -3/Protoforge | Spotted Hotshot 18644 | -3/Protoforge | Spotted EXE-6 18644 | -3/Protoforge | Spotted EXE-6 18649 | -3/Protoforge | Build established: Hacker-Scout 18650 | -3/Protoforge | Spotted Decapitator 18651 | -3/Protoforge | Spotted Decapitator 18663 | -3/Protoforge | Initialized slip node 18673 | -3/Protoforge | UFD initiated attack on Protoforge (Readiness: Minimal) 18673 | -3/Protoforge | Loaded intel: 3 recycling unit locations 18719 | -3/Protoforge | Identified Supercharged TR 18719 | -3/Protoforge | Warped through subspace to slip node 18720 | -3/Protoforge | Optimus attacked Superfortress 18721 | -3/Protoforge | Optimus greeted in Protoforge 18739 | -3/Protoforge | Spotted Hotshot 18742 | -3/Protoforge | Spotted Striker 18748 | -3/Protoforge | Spotted Decapitator 18751 | -3/Protoforge | Lost 4 parts (2p1n1w) 18754 | -3/Protoforge | Triborg destroyed during the operation 18754 | -3/Protoforge | Optimus emerged from Triborg 18760 | -3/Protoforge | Spotted Decapitator 18769 | -3/Protoforge | Destroyed Superfortress 18776 | -3/Protoforge | Spotted EXE-6 18776 | -3/Protoforge | Spotted EXE-6 18795 | -3/Protoforge | Found Prototype Storage 18795 | -3/Protoforge | Identified Cep. NT7 Matterbank 18803 | -3/Protoforge | Found Prototype Slashing Weapon 18803 | -3/Protoforge | Identified Exp. Terror Saw 18811 | -3/Protoforge | Lost 13 allies 18829 | -3/Protoforge | Spotted Hotshot 18829 | -3/Protoforge | Spotted Hotshot 18829 | -3/Protoforge | Spotted V787-n 18829 | -3/Protoforge | Spotted V447-v 18840 | -3/Protoforge | Spotted Decapitator 18840 | -3/Protoforge | Spotted Decapitator 18840 | -3/Protoforge | Spotted Decapitator 18865 | -3/Protoforge | Spotted Immortal 18865 | -3/Protoforge | Spotted Immortal 18898 | -3/Protoforge | Destroyed Decapitator 18902 | -3/Protoforge | Destroyed Decapitator 18909 | -3/Protoforge | Destroyed Decapitator 18956 | -3/Protoforge | Found Prototype Slashing Weapon 18956 | -3/Protoforge | Identified Cep. Deflector Sword 18958 | -3/Protoforge | Found Prototype Piercing Weapon 18958 | -3/Protoforge | Identified Exp. Jetlance 18960 | -3/Protoforge | Found Cep. Deflector Sword 18962 | -3/Protoforge | Found Exp. Jetlance 18979 | -3/Protoforge | Found Exp. Jetlance 19012 | -3/Protoforge | Destroyed Hotshot 19026 | -3/Protoforge | Destroyed Hotshot 19083 | -3/Protoforge | Found Prototype Protection 19083 | -3/Protoforge | Identified Cep. Core Shell 19088 | -3/Protoforge | Found Prototype Protection 19088 | -3/Protoforge | Identified Cep. RG22 Armor 19093 | -3/Protoforge | Lost 3 parts (1n2u) 19108 | -3/Protoforge | Spotted V341-l 19108 | -3/Protoforge | Found Cep. RG22 Armor 19148 | -3/Protoforge | Destroyed V341-l 19153 | -3/Protoforge | Core integrity fell below 50% 19172 | -3/Protoforge | Core integrity fell below 20% 19176 | -3/Protoforge | Destroyed by Immortal with Experimental Jetlance Last Messages --------------- 19150_ 0bP_NET: Lugger 464 inbound, all units not involved in other operations escort to target. 19150_ Immortal Prototype Device severed. 19153_ Immortal Prototype Protection severed. 19154_ UEAV2FPA:H|Z4SNGXPBJIW: OD48GP>XUHG 19155_ 0bP_NET: Lugger 054 inbound, all units not involved in other operations escort to target. 19157_ Cld. Nuclear Pulse Thruster destroyed. 19160_ Dropped Lrg. Storage Unit. 19163_ Immortal Prototype Device severed. 19163_ Exp. Jetlance follow-up attack on Immortal. 19164_ 0bP_NET: Lugger 513 inbound, all units not involved in other operations escort to target. 19166_ Cep. Deflector Sword follow-up attack on Immortal. 19168_ 0bP_NET: Lugger 917 inbound, all units not involved in other operations escort to target. 19168_ Immortal suffers critical hit (Impale). 19169_ System corrupted: Matter fused (-10). 19171_ Immortal suffers critical hit (Impale). 19174_ Cep. Deflector Sword follow-up attack on Immortal. Map ----- +----------------------------------------------------+ | ?????????????????????????????????????????????????? | | ?????????????????????????????????????????????????? | | ?????????????????????????????????????????????????? | | ?????????????????????????????????????????????????? | | ?????????????????????????????????????????????????? | | ?????????????????????????????????????????????????? | | ?????????????????????????????????????????????????? | | ?????????????????????????????????????????????????? | | ?????????????????????????????????????????????????? | | ?????????????????????????????????????????????????? | | ?????????????????????????????????????????????????? | | ?????????????????????????????????????????????????? | | ?????????????????????????????????????????????????? | | ?????????????????????????????????????????????????? | | ##############???????????????????????????????????? | | ##??????????????????????????????????? | | #?????????????#########????????????? | | ???? #?????????????#! !!! #????????????? | | ?????????# #??????????????#!!! ! #????????????? | | ?????????# #??????????????# !! #?####???????? | | ?????????# #??????????????###### ### ###?????? | | ?????????# #???????????????????" "#?????? | | ?????????# #?????????????????#"" #?????? | | ?????????# *!################### ""#?????? | | ?????????# % !!!l!! #?????? | | ?????????# ^ /@l!!! """"#?????? | | ?????????# #########;+######## | ""#?????? | | ?????????#! #?????#" # $$%"#?????? | | ?????????# = #?????#" " " ""$$##?????? | | ?????????# #?????#" " " " "! !!!="#?????? | | ?????????# #?????#"""""""# " " !!!"#?????? | | ?????????# #?????######### ##### """"""#?????? | | ?????????# #?????????????#####???#########?????? | | ?????????# ^ #???????????????????????????????????? | | ?????????# #???????????????????????????????????? | | ?????????# #???????????????????????????????????? | | ?????????#^ #???????????????????????????????????? | | ?????????# #???????????????????????????????????? | | ?????????# #????????????????##############?????? | | ?????????# #????????????????#[][[[##][[ ]#?????? | | ?????????# #????????????????#/[/[]##][//]#?????? | | ?????????# #????????????????###" "## ""###?????? | | ?????????# #????????????????# !! "#?????? | | ?????????# #????????????????# ""#?????? | | ?????????# ################## """"#?????? | | ?????????# [ / """"#?????? | | ?????????# [ ""#?????? | | ?????????# ########### #"" "#?????? | | ?????????# #?????????#"" #?" #?????? | | ?????????# #?????????#########"""""" ##?????? | +----------------------------------------------------+ Best States ------------- Heat Dissipation 66 Energy Generation 55 Energy Capacity 260 Matter Stores 300 Matter Capacity 300 Sight Range 22 Robot Scan Range 16 Terrain Scan Range 16 Terrain Scan Density 10 Jamming Range 22 Corruption Containment 8 Armor Coverage 800 Resistance: KI 30 Core Shielding 90 Utility Shielding 90 Projectile Deflection 15 Evasion (%) 79 Targeting Accuracy 5 Melee Accuracy 8 Recoil Reduction 2 Offensive Hacking 64 Defensive Hacking 20 Authchip Count 6 Item Schematics ----------------- Trap Extractor | -9/Recycling | Hacked Transport Network Coupler | -9/Recycling | Hacked Deep Structural Scanner | -6/Factory | Extrapolated Mak. Hacking Suite | -6/Factory | Extrapolated Bore Cannon | -6/Factory | Extrapolated Beamcaster | -6/Factory | Extrapolated CPS Tube | -6/Factory | Scanalyzed Imp. Utility Shielding | -6/Factory | Hacked Microactuators | -6/Factory | Scanalyzed Mak. Kinetic Plating | -6/Factory | Extrapolated Mak. Medium Armor Plating | -6/Factory | Extrapolated Mak. Heavy Armor Plating | -6/Factory | Extrapolated Mak. Light Armor Plating | -6/Factory | Extrapolated Mak. Ablative Armor | -6/Factory | Extrapolated Mak. Coolant Network | -6/Waste | Extrapolated Mak. Power Source | -6/Waste | Extrapolated Mak. Flight Unit | -6/Factory | Extrapolated Smartbomb Launcher | -6/Factory | Hacked Hvy. Beamcaster | -6/Factory | Extrapolated Energy Deflector | -6/Factory | Extrapolated Ripper | -6/Extension | Extrapolated Mak. System Shield | -6/Extension | Extrapolated Adv. Datajack | -6/Extension | Hacked Humpback | -6/Extension | Extrapolated Nuclear Pulse Array | -6/Extension | Hacked Matter Compressor | -6/Extension | Hacked Lgt. Angular Momentum Engine | -6/Extension | Hacked Mak. Thermal Plating | -6/Extension | Extrapolated Mak. Core Shielding | -6/Cetus | Extrapolated Mak. Propulsion Shielding | -6/Cetus | Extrapolated Mak. Laser | -6/Cetus | Extrapolated Mak. Axe | -6/Cetus | Extrapolated Mak. System Restoration Module | -6/Archives | Extrapolated Slug Cannon | -6/Hub_04(d) | Extrapolated Mak. ECM Suite | -5/Factory | Extrapolated Exp. Terrain Scan Processor | -5/Factory | Scanalyzed Mak. Terrain Scan Processor | -5/Factory | Extrapolated 0b10 Decoder Chip [Generic] | -5/Factory | Extrapolated 0b10 Decoder Chip [Scout] | -5/Factory | Extrapolated 0b10 Decoder Chip [Skirmisher] | -5/Factory | Extrapolated Machine Rigger | -5/Upper Caves | Extrapolated Hvy. Battle Rifle | -5/Upper Caves | Extrapolated Multitool | -5/Upper Caves | Extrapolated Plasma Flamer | -5/Upper Caves | Extrapolated Tactical Coordination Suite | -5/Warlord | Extrapolated Mak. Salvage Targeting Computer | -5/Warlord | Extrapolated Arc Thrower | -5/Warlord | Extrapolated Exp. Hacking Suite | -4/Factory | Hacked Adv. Transmission Jammer | -4/Factory | Hacked Exp. Utility Shielding | -4/Factory | Hacked Jamming Amplifier | -4/Factory | Hacked Imp. Fusion Compressor | -4/Factory | Hacked Assault Drone Bay | -4/Zhirov | Free Exp. Heat Sink | -4/Zhirov | Free Exp. Optical Array | -4/Zhirov | Free Imp. Arc Thrower | -4/Zhirov | Free Exp. Transmission Jammer | -3/Research | Hacked Exp. Shield Generator | -3/Research | Hacked Adv. Cloaking Device | -3/Quarantine | Hacked Cld. Proton Cannon | -3/Protoforge | Archive Robot Schematics ------------------ None Fabricated ------------ Deep Structural Scanner | x1 | -6/Factory | Authchip Imp. Utility Shielding | x2 | -6/Factory | Authchip Exp. Hacking Suite | x1 | -4/Factory | Authchip Exp. Hacking Suite | x1 | -4/Factory | Authchip Exp. Transmission Jammer | x1 | -3/Research Exp. Utility Shielding | x1 | -3/Research | Authchip Exp. Utility Shielding | x1 | -3/Research | Authchip Jamming Amplifier | x2 | -3/Research Repaired ---------- Mni. Grenade Launcher | 34% | -6/Factory Exp. Terrain Scan Processor | 10% | -5/Factory Studied --------- Mni. Grenade Launcher | -6/Factory | Hacked Lrn. Missile Launcher | -6/Factory | Hacked Cesium-ion Thruster | -6/Factory | Hacked Alien Tech Used ----------------- Core Expander Integrated Dissipator Phase Redirector Subatomic Replicator Dimensional Node Initializer Supercharged TR Achievements -------------- Dominance Asserted We Are One Challenges ------------ None Game ------ Seed TimingTitaniumMatter Manual? 0 Play Time 03:02:14 Cumulative 839.3 hours Start 2025.11.27 @ 16:31:33 End 2025.11.27 @ 20:52:07 Sessions 3 Manual Loads 0 Difficulty Rogue Special Mode None Game No. 844 Rogue 844 Adventurer 0 Explorer 0 Win Type - Total 40 Types 15/4/11/2/0/0/5/2/1/0 Lore% 96 Gallery% 86 Achievement% 65 Wizard Run 0 Options --------- Layout 0 ASCII 0 Keyboard 0 Movement Numpad Keybinds 0 Fullscreen 1 Font 18/Smallcaps Map View 76x50 Zoom Use 0% Tactical HUD 1 Map Filters NONE Filters NONE Steam 1 RUN: 083c280b-b063-4286-84f7-a1c7abc4492f